fUSD/lending_fUSD_20260322
["ID","MTS","AMOUNT","RATE_DAILY","PERIOD"]
[408749087,1774191046915,-250.0,0.00014561,2]
[408749088,1774191046934,-695.39793187,0.00014561,2]
[408749089,1774191046952,-250.0,0.00014561,2]
[408749090,1774191046971,-500.0,0.00014561,2]
[408749091,1774191046989,-250.0,0.00014561,2]
[408749093,1774191047007,-500.0,0.00014561,2]
[408749096,1774191047025,-250.0,0.00014561,2]
[408749099,1774191047042,-500.0,0.00014561,2]
[408749101,1774191047059,-250.0,0.00014561,2]
[408749104,1774191047076,-500.0,0.00014561,2]
[408749107,1774191047093,-500.0,0.00014561,2]
[408749110,1774191047110,-250.0,0.00014561,2]
[408749113,1774191047130,-250.0,0.00014561,2]
[408749116,1774191047147,-500.0,0.00014561,2]
[408749119,1774191047164,-250.0,0.00014561,2]
[408749121,1774191047180,-250.0,0.00014561,2]
[408749124,1774191047197,-250.0,0.00014561,2]
[408749127,1774191047213,-250.0,0.00014561,2]
[408749130,1774191047230,-250.0,0.00014561,2]
[408749132,1774191047246,-500.0,0.00014561,2]
[408749133,1774191047262,-500.0,0.00014561,2]
[408749134,1774191047279,-500.0,0.00014561,2]
[408749135,1774191047294,-500.0,0.00014561,2]
[408749136,1774191047313,-500.0,0.00014561,2]
[408749137,1774191047329,-500.0,0.00014561,2]
[408749138,1774191047345,-250.0,0.00014561,2]
[408749139,1774191047361,-500.0,0.00014561,2]
[408749140,1774191047376,-250.0,0.00014561,2]
[408749141,1774191047392,-500.0,0.00014561,2]
[408749142,1774191047407,-250.0,0.00014561,2]
[408749143,1774191047423,-500.0,0.00014561,2]
[408749144,1774191047438,-250.0,0.00014561,2]
[408749145,1774191047453,-500.0,0.00014561,2]
[408749146,1774191047472,-250.0,0.00014561,2]
[408749147,1774191047487,-500.0,0.00014561,2]
[408749148,1774191047503,-250.0,0.00014561,2]
[408749149,1774191047519,-9211.34798985,0.00014561,2]
[408749150,1774191047534,-250.0,0.00014561,2]
[408749151,1774191047549,-500.0,0.00014561,2]
[408749152,1774191047564,-500.0,0.00014561,2]
[408749153,1774191047579,-250.0,0.00014561,2]
[408749154,1774191047594,-500.0,0.00014561,2]
[408749155,1774191047610,-500.0,0.00014561,2]
[408749156,1774191047625,-250.0,0.00014561,2]
[408749157,1774191047641,-250.0,0.00014561,2]
[408749158,1774191047656,-500.0,0.00014561,2]
[408749159,1774191047672,-250.0,0.00014561,2]
[408749160,1774191047687,-578.20924308,0.00014561,2]
[408749161,1774191047702,-500.0,0.00014561,2]
[408749162,1774191047717,-250.0,0.00014561,2]
[408749163,1774191047734,-500.0,0.00014561,2]
[408749164,1774191047753,-151.0,0.00014561,2]
[408749165,1774191047768,-500.0,0.00014561,2]
[408749166,1774191047782,-216.69961436,0.00014561,2]
[408749167,1774191047796,-500.0,0.00014561,2]
[408749168,1774191047814,-250.0,0.00014561,2]
[408749169,1774191047829,-500.0,0.00014561,2]
[408749170,1774191047845,-250.0,0.00014561,2]
[408749171,1774191047861,-500.0,0.00014561,2]
[408749172,1774191047877,-250.0,0.00014561,2]
[408749173,1774191047895,-500.0,0.00014561,2]
[408749174,1774191047909,-250.0,0.00014561,2]
[408749175,1774191047924,-500.0,0.00014561,2]
[408749176,1774191047938,-250.0,0.00014561,2]
[408749177,1774191047954,-500.0,0.00014561,2]
[408749178,1774191047970,-250.0,0.00014561,2]
[408749179,1774191047984,-500.0,0.00014561,2]
[408749180,1774191048000,-250.0,0.00014561,2]
[408749181,1774191048014,-500.0,0.00014561,2]
[408749182,1774191048029,-250.0,0.00014561,2]
[408749183,1774191048044,-500.0,0.00014561,2]
[408749184,1774191048059,-250.0,0.00014561,2]
[408749185,1774191048074,-500.0,0.00014561,2]
[408749186,1774191048089,-250.0,0.00014561,2]
[408749187,1774191048105,-500.0,0.00014561,2]
[408749188,1774191048121,-250.0,0.00014561,2]
[408749189,1774191048137,-500.0,0.00014561,2]
[408749190,1774191048153,-182.03046593,0.00014561,2]
[408749191,1774191048171,-151.0,0.00014561,2]
[408749192,1774191048195,-156.587,0.00014561,2]
[408749193,1774191048219,-194.25887118,0.00014561,2]
[408749194,1774191048234,-743.50770149,0.00014561,2]
[408749195,1774191048250,-250.0,0.00014561,2]
[408749196,1774191048265,-250.0,0.00014561,2]
[408749197,1774191048280,-250.0,0.00014561,2]
[408749198,1774191048295,-250.0,0.00014561,2]
[408749199,1774191048312,-250.0,0.00014561,2]
[408749200,1774191048327,-250.0,0.00014561,2]
[408749201,1774191048342,-250.0,0.00014561,2]
[408749202,1774191048357,-250.0,0.00014561,2]
[408749203,1774191048370,-250.0,0.00014561,2]
[408749204,1774191048386,-250.0,0.00014561,2]
[408749205,1774191048401,-250.0,0.00014561,2]
[408749206,1774191048416,-250.0,0.00014561,2]
[408749207,1774191048430,-279.9045709,0.00014561,2]
[408749208,1774191048445,-201.93286099,0.00014561,2]
[408749209,1774191048460,-200.0,0.00014561,2]
[408749210,1774191048473,-262.90206542,0.00014561,2]
[408749211,1774191048489,-151.0,0.00014561,2]
[408749212,1774191048503,-500.0,0.00014561,2]
[408749213,1774191048517,-500.0,0.00014561,2]
[408749214,1774191048531,-500.0,0.00014561,2]
[408749215,1774191048546,-500.0,0.00014561,2]
[408749216,1774191048561,-500.0,0.00014561,2]
[408749217,1774191048575,-9552.16786547,0.00014616,2]
[408749218,1774191048589,-500.0,0.00014616,2]
[408749219,1774191048603,-272.62944185,0.00014616,2]
[408749220,1774191048617,-151.0,0.00014616,2]
[408749221,1774191048632,-174.18,0.00014629,2]
[408749222,1774191048647,-150.0,0.00014641,2]
[408749223,1774191048663,-150.0,0.00014662,2]
[408749224,1774191048680,-9905.5980765,0.00014671,2]
[408749225,1774191048695,-500.0,0.00014671,2]
[408749226,1774191048714,-282.71673119,0.00014671,2]
[408749227,1774191048729,-151.0,0.00014671,2]
[408749228,1774191048744,-200.0,0.00014683,2]
[408749229,1774191048760,-500.0,0.0001471,2]
[408749230,1774191048775,-10272.10520533,0.00014726,2]
[408749231,1774191048788,-500.0,0.00014726,2]
[408749232,1774191048802,-293.17725025,0.00014726,2]
[408749233,1774191048816,-151.0,0.00014726,2]
[408749234,1774191048829,-41699.13191637,0.00014734,2]
[408749235,1774191048843,-26878.8631985,0.00014734,2]
[408749236,1774191048857,-150.0,0.00014745,2]
[408749237,1774191048871,-1000.0,0.00014747,2]
[408749238,1774191048885,-8185.90148326,0.00014767,2]
[408749239,1774191048899,-10652.17309792,0.00014781,2]
[408749240,1774191048914,-500.0,0.00014781,2]
[408749241,1774191048929,-304.02480851,0.00014781,2]
[408749242,1774191048942,-151.0,0.00014781,2]
[408749243,1774191048956,-82653.4509949,0.00014792,2]
[408749244,1774191048970,-500.0,0.00014794,2]
[408749245,1774191048989,-522.93,0.00014794,2]
[408749246,1774191049012,-1500.0,0.00014795,2]
[408749247,1774191049033,-1500.0,0.00014795,2]
[408749248,1774191049049,-1500.0,0.00014795,2]
[408749249,1774191049062,-1158.78645597,0.00014795,2]
[408749250,1774191049077,-1500.0,0.00014795,2]
[408749251,1774191049092,-713.64434561,0.00014795,2]
[408749252,1774191049105,-722.68518983,0.00014795,2]
[408749253,1774191049121,-419.75064279,0.00014795,2]
[408749254,1774191049135,-1500.0,0.00014795,2]
[408749255,1774191049150,-500.0,0.00014804,2]
[408749256,1774191049163,-500.0,0.00014804,2]
[408749257,1774191049176,-523.44,0.00014804,2]
[408749258,1774191049190,-946.64,0.00014804,2]
[408749259,1774191049203,-174.47964956,0.00014807,2]
[408749260,1774191049219,-11046.30350255,0.00014836,2]
[408749261,1774191049234,-500.0,0.00014836,2]
[408749262,1774191049249,-315.27372642,0.00014836,2]
[408749263,1774191049263,-151.0,0.00014836,2]
[408749264,1774191049276,-533.0,0.00014849,2]
[408749265,1774191049290,-11455.01673214,0.00014891,2]
[408749266,1774191049303,-500.0,0.00014891,2]
[408749267,1774191049315,-326.9388543,0.00014891,2]
[408749268,1774191049328,-151.0,0.00014891,2]
[408749269,1774191049341,-335.73,0.000149,2]
[408749270,1774191049356,-2400.0,0.000149,5]
[408749271,1774191049370,-11878.85235123,0.00014946,2]
[408749272,1774191049383,-500.0,0.00014946,2]
[408749273,1774191049396,-339.03559191,0.00014946,2]
[408749274,1774191049409,-151.0,0.00014946,2]
[408749275,1774191049422,-787.10595,0.00015,2]
[408749276,1774191049436,-12318.36988823,0.00015001,2]
[408749277,1774191049448,-500.0,0.00015001,2]
[408749278,1774191049460,-151.0,0.00015001,2]
[408749279,1774191049473,-500.0,0.00015056,2]
[408749280,1774191049485,-5592.14762936,0.00015056,2]
[408749281,1774191049498,-151.0,0.00015056,2]
[408749282,1774191049510,-150.0,0.00015072,2]
[408749283,1774191049523,-2747.48,0.000151,2]
[408749284,1774191049535,-181.08010149,0.00015109,2]
[408749285,1774191049548,-171.63596104,0.00015109,2]
[408749286,1774191049559,-151.0,0.00015109,2]
[408749287,1774191049572,-771.01748645,0.00015109,2]
[408749288,1774191049585,-290.26104003,0.00015109,2]
[408749289,1774191049597,-209.40437684,0.00015109,2]
[408749290,1774191049610,-200.0,0.00015109,2]
[408749291,1774191049623,-500.0,0.00015111,2]
[408749292,1774191049637,-151.0,0.00015111,2]
[408749293,1774191049649,-491.0,0.00015136,2]
[408749294,1774191049662,-500.0,0.00015166,2]
[408749295,1774191049677,-151.0,0.00015166,2]
[408749296,1774191049690,-150.0,0.00015179,2]
[408749297,1774191049703,-901.36,0.000152,2]
[408749298,1774191049717,-491.0,0.00015216,2]
[408749299,1774191049729,-217.73791025,0.00015231,2]
[408749300,1774191049743,-4609.0,0.00015272,2]
[408749301,1774191049756,-151.0,0.00015279,2]
[408749302,1774191049768,-1885.27,0.000153,2]
[408749303,1774191049780,-1435.37,0.000153,2]
[408749304,1774191049792,-41699.13191637,0.00015317,2]
[408749305,1774191049805,-26878.8631985,0.00015317,2]
[408749306,1774191049817,-438.79,0.00015324,2]
[408749307,1774191049830,-500.0,0.00015336,2]
[408749308,1774191049843,-522.93,0.00015336,2]
[408749309,1774191049855,-482.79604468,0.00015342,2]
[408749310,1774191049867,-1244.0069204,0.00015342,2]
[408749311,1774191049879,-1000.0,0.00015342,2]
[408749312,1774191049891,-573.03260881,0.00015342,2]
[408749313,1774191049904,-168.17,0.00015385,2]
[408749314,1774191049917,-168.17,0.00015385,2]
[408749315,1774191049930,-158.1385,0.000154,2]
[408749316,1774191049943,-500.0,0.00015419,3]
[408749317,1774191049958,-409.0,0.00015425,2]
[408749318,1774191049971,-2227.58,0.00015446,2]
[408749319,1774191049984,-500.0,0.00015446,2]
[408749320,1774191050756,-500.0,0.00015446,2]
[408749321,1774191050799,-200.0,0.000155,3]
[408749322,1774191050824,-1912.75,0.000155,2]
[408749323,1774191050834,-491.0,0.00015592,2]
[408749324,1774191050844,-491.0,0.00015605,2]
[408749325,1774191050853,-150.0,0.00015612,2]
[408749326,1774191050862,-500.0,0.00015616,2]
[408749327,1774191050871,-187.78006525,0.00015657,2]
[408749328,1774191050880,-151.0,0.00015657,2]
[408749329,1774191050890,-799.54513345,0.00015657,2]
[408749330,1774191050899,-301.00069851,0.00015657,2]
[408749331,1774191050909,-217.15233878,0.00015657,2]
[408749332,1774191050918,-200.0,0.00015657,2]
[408749333,1774191050927,-491.0,0.00015677,2]
[408749334,1774191050937,-222.91,0.00015758,2]
[408749335,1774191050947,-177.0338293,0.00015784,2]
[408749336,1774191050956,-1685.88,0.000158,2]
[408749337,1774191050965,-222.91,0.00015839,2]
[408749338,1774191050974,-438.79,0.00015846,2]
[408749339,1774191050983,-14499.986279,0.00015848,2]
[408749340,1774191050992,-1000.0,0.00015848,2]
[408749341,1774191051001,-1000.0,0.00015848,2]
[408749342,1774191051010,-1000.0,0.00015848,2]
[408749343,1774191051019,-1000.0,0.00015848,2]
[408749344,1774191051028,-823.896,0.00015848,2]
[408749345,1774191051038,-1665.27,0.00015862,2]
[408749346,1774191051047,-500.0,0.00015871,2]
[408749347,1774191051056,-500.0,0.00015872,2]
[408749348,1774191051065,-500.0,0.00015872,2]
[408749349,1774191051075,-500.0,0.00015872,2]
[408749350,1774191051084,-500.0,0.00015872,2]
[408749351,1774191051094,-1000.0,0.00015873,2]
[408749352,1774191051103,-41699.13191637,0.000159,2]
[408749353,1774191051112,-26878.8631985,0.000159,2]
[408749354,1774191051121,-400.0,0.000159,5]
[408749355,1774191051130,-399.07887743,0.000159,2]
[408749356,1774191051139,-1651.0,0.000159,5]
[408749357,1774191051149,-1453.0,0.000159,5]
[408749358,1774191051158,-200.0,0.000159,2]
[408749359,1774191051167,-222.91,0.00015919,2]
[408749360,1774191051177,-400.0,0.00015945,2]
[408749361,1774191051186,-400.0,0.00015945,2]
[408749362,1774191051195,-400.0,0.00015945,2]
[408749363,1774191051205,-400.0,0.00015945,2]
[408749364,1774191051214,-303.3462059,0.00015945,2]
[408749365,1774191051224,-315.0,0.00015948,2]
[408749366,1774191051233,-500.0,0.00015959,2]
[408749367,1774191051243,-500.0,0.00015959,2]
[408749368,1774191051251,-523.44,0.00015959,2]
[408749369,1774191051261,-946.64,0.00015959,2]
[408749370,1774191051270,-3625.57747866,0.0001596,2]
[408749371,1774191051279,-392.48943774,0.0001599,2]
[408749372,1774191051289,-205.850296,0.00015997,2]
[408749373,1774191051299,-151.0,0.00015997,2]
[408749374,1774191051309,-666.0,0.00015999,2]
[408749375,1774191051319,-672.44576879,0.00015999,2]
[408749376,1774191051328,-666.0,0.00015999,2]
[408749377,1774191051338,-500.0,0.00015999,2]
[408749378,1774191051348,-500.0,0.00015999,2]
[408749379,1774191051359,-500.0,0.00015999,2]
[408749380,1774191051368,-500.0,0.00015999,2]
[408749381,1774191051378,-500.0,0.00015999,2]
[408749382,1774191051387,-188.33807492,0.00015999,2]
[408749383,1774191051396,-500.0,0.00015999,2]
[408749384,1774191051406,-500.0,0.00015999,2]
[408749385,1774191051416,-500.0,0.00015999,2]
[408749386,1774191051425,-500.0,0.00015999,2]
[408749387,1774191051435,-500.0,0.00015999,2]
[408749388,1774191051444,-500.0,0.00015999,2]
[408749389,1774191051454,-500.0,0.00015999,2]
[408749390,1774191051463,-634.38,0.00015999,2]
[408749391,1774191051473,-381.38353119,0.00015999,2]
[408749392,1774191051482,-2227.58,0.00015999,2]
[408749393,1774191051491,-2227.58,0.00015999,2]
[408749394,1774191051501,-2227.58,0.00015999,2]
[408749395,1774191051510,-2227.58,0.00015999,2]
[408749396,1774191051520,-2227.58,0.00015999,2]
[408749397,1774191051529,-2227.58,0.00015999,2]
[408749398,1774191051539,-2227.58,0.00015999,2]
[408749399,1774191051549,-2227.58,0.00015999,2]
[408749400,1774191051558,-2227.58,0.00015999,2]
[408749401,1774191051569,-2227.58,0.00015999,2]
[408749402,1774191051578,-2227.58,0.00015999,2]
[408749403,1774191051588,-2227.67,0.00015999,2]
[408749404,1774191051597,-500.0,0.00015999,2]
[408749405,1774191051607,-500.0,0.00015999,2]
[408749406,1774191051616,-500.0,0.00015999,2]
[408749407,1774191051626,-529.42180418,0.00015999,2]
[408749408,1774191051635,-500.0,0.00015999,2]
[408749409,1774191051644,-500.0,0.00015999,2]
[408749410,1774191051654,-500.0,0.00015999,2]
[408749411,1774191051663,-500.0,0.00015999,2]
[408749412,1774191051679,-500.0,0.00015999,2]
[408749413,1774191051688,-604.51450435,0.00015999,2]
[408749414,1774191051698,-523.44,0.00015999,2]
[408749415,1774191051708,-523.44,0.00015999,2]
[408749416,1774191051720,-523.44,0.00015999,2]
[408749417,1774191051730,-523.44,0.00015999,2]
[408749418,1774191051740,-523.44,0.00015999,2]
[408749419,1774191051750,-523.44,0.00015999,2]
[408749420,1774191051760,-523.44,0.00015999,2]
[408749421,1774191051769,-523.44,0.00015999,2]
[408749422,1774191051779,-381.45780892,0.00015999,2]
[408749423,1774191051789,-523.67679382,0.00015999,2]
[408749424,1774191051799,-946.64,0.00015999,2]
[408749425,1774191051810,-946.64,0.00015999,2]
[408749426,1774191051820,-946.64,0.00015999,2]
[408749427,1774191051829,-946.64,0.00015999,2]
[408749428,1774191051839,-946.64,0.00015999,2]
[408749429,1774191051849,-946.64,0.00015999,2]
[408749430,1774191051859,-946.64,0.00015999,2]
[408749431,1774191051868,-946.64,0.00015999,2]
[408749432,1774191051877,-946.80781504,0.00015999,2]
[408749433,1774191051886,-500.0,0.00015999,2]
[408749434,1774191051896,-500.0,0.00015999,2]
[408749435,1774191051905,-500.0,0.00015999,2]
[408749436,1774191051915,-437.36106336,0.00015999,2]
[408749437,1774191051924,-522.93,0.00015999,2]
[408749438,1774191051934,-522.93,0.00015999,2]
[408749439,1774191051943,-522.93,0.00015999,2]
[408749440,1774191051953,-522.93,0.00015999,2]
[408749441,1774191051962,-522.93,0.00015999,2]
[408749442,1774191051972,-522.93,0.00015999,2]
[408749443,1774191051981,-522.93,0.00015999,2]
[408749444,1774191051990,-522.93,0.00015999,2]
[408749445,1774191051999,-522.93,0.00015999,2]
[408749446,1774191052008,-522.93,0.00015999,2]
[408749447,1774191052017,-522.93077841,0.00015999,2]
[408749448,1774191052027,-751053.11344603,0.00016,2]
[408749449,1774191053827,-720.215,0.00016,2]
[408749450,1774191053887,-1121.3155862,0.00016,2]
[408749451,1774191053898,-19972.00000002,0.00016,2]
[408749452,1774191053910,-22979.5758154,0.00016,2]
[408749453,1774191053922,-9471.4994669,0.00016,2]
[408749454,1774191053941,-922.05703506,0.00016,2]
[408749455,1774191054217,-72632.53236351,0.00016,2]
[408749456,1774191054265,-97746.31045812,0.00016,2]
[408749457,1774191054274,-113870.6895419,0.00016,2]
[408749458,1774191054286,-16146.36300254,0.00016,2]
[408749459,1774191054532,-2000.0,0.0001589,2]
[408749460,1774191054542,-157724.93529431,0.00016,2]
[408749461,1774191054552,-434.35531069,0.00016,2]
[408749462,1774191054561,-150.548182,0.00016,2]
[408749463,1774191054571,-684.96565838,0.00016,2]
[408749464,1774191054580,-401.94811747,0.00016,2]
[408749465,1774191054589,-206318.52651181,0.00016,2]
[408749466,1774191054600,-3122.81980553,0.00016,2]
[408749467,1774191054611,-1686.53756833,0.00016,2]
[408749468,1774191054626,-1741.2,0.00016,2]
[408749469,1774191054638,-719.96,0.00016,2]
[408749470,1774191054665,-1510.961,0.00016,2]
[408749471,1774191054687,-305.85529548,0.00016,2]
[408749472,1774191054698,-488797.74207657,0.00016,2]
[408749473,1774191089646,500.0,0.00010332,2]
[408749474,1774191217399,-160.0,0.00010362,2]
[408749475,1774191217437,-158.0,0.00010362,2]
[408749476,1774191217468,-300.0,0.00010404,2]
[408749477,1774191217496,-331.62,0.00010405,2]
[408749478,1774191217524,-1455.075,0.00010405,2]
[408749479,1774191217686,-4538.03061336,0.00010405,2]
[408749480,1774191223285,-652.58938664,0.00010405,2]
[408749481,1774191247798,500.0,0.00010332,2]
[408749482,1774191305359,152.0,0.00010362,2]
[408749483,1774191305785,155.0,0.00010362,2]
[408749484,1774191311339,158.0,0.00010362,2]
[408749485,1774191365428,152.0,0.00010362,2]
[408749486,1774191372267,158.0,0.00010362,2]
[408749487,1774191390877,159.77,9.983e-05,2]
[408749488,1774191413757,500.0,0.00010305,2]
[408749489,1774191427186,160.0,0.00010362,2]
[408749490,1774191470165,3658.36,9.862e-05,2]
[408749491,1774191486690,159.0,0.00010362,2]
[408749492,1774191490297,-912.75385126,0.00010516,2]
[408749493,1774191490327,-250.0,0.00010517,2]
[408749494,1774191490358,-912.75385124,0.00010517,2]
[408749495,1774191490392,-457.44547683,0.00010518,2]
[408749496,1774191490422,-266.05258496,0.00010518,2]
[408749497,1774191490451,-912.75385124,0.00010518,2]
[408749498,1774191490478,-159.77,0.00010538,2]
[408749499,1774191490507,-250.0,0.00010556,2]
[408749500,1774191498465,-5878.48038447,0.00010608,2]
[408749501,1774191502285,-2500.0,0.00010518,2]
[408749502,1774191502335,-5000.01,0.00010608,2]
[408749504,1774191850415,639.97,4.799e-05,2]
[408749505,1774191850484,639.97,5.051e-05,2]
[408749506,1774191850551,639.97,5.304e-05,2]
[408749507,1774191850611,639.97,5.556e-05,2]
[408749508,1774191850685,639.97,5.809e-05,2]
[408749509,1774191850816,639.97,6.061e-05,2]
[408749510,1774191850884,639.97,6.314e-05,2]
[408749511,1774191850962,639.97,6.566e-05,2]
[408749512,1774191851030,639.97,6.819e-05,2]
[408749513,1774191851085,639.97,7.072e-05,2]
[408749514,1774191851204,639.97,7.324e-05,2]
[408749515,1774191851391,639.97,7.577e-05,2]
[408749516,1774191851582,639.97,7.829e-05,2]
[408749517,1774191851769,639.97,8.082e-05,2]
[408749518,1774191851976,639.97,8.334e-05,2]
[408749519,1774191852164,400.46,8.587e-05,2]
[408749520,1774191852191,239.51,8.587e-05,2]
[408749521,1774191852365,639.97,8.839e-05,2]
[408749522,1774191852559,639.97,9.092e-05,2]
[408749523,1774191853099,639.97,9.344e-05,2]
[408749524,1774191901136,-1852.42,9.512e-05,2]
[408749525,1774191901167,-500.0,9.535e-05,2]
[408749526,1774191901201,-639.97,9.597e-05,2]
[408749527,1774191910600,-300.0,9.657e-05,2]
[408749528,1774191910629,-300.0,9.657e-05,2]
[408749529,1774191910658,-300.0,9.657e-05,2]
[408749530,1774191910688,-1200.0,9.657e-05,2]
[408749531,1774191910717,-428.95840058,9.657e-05,2]
[408749532,1774191910745,-272.54509157,9.657e-05,2]
[408749533,1774191918634,-6252.8130157,9.658e-05,2]
[408749534,1774191937937,-3747.1969843,9.658e-05,2]
[408749535,1774191945845,200.0,9.1e-05,2]
[408749536,1774191961877,1600.0,9.511e-05,2]
[408749537,1774192105140,-500.0,9.792e-05,2]
[408749542,1774192233272,-951.18,9.792e-05,2]
[408749543,1774192233282,-248.0,9.792e-05,2]
[408749544,1774192233297,-96.03988168,9.964e-05,2]
[408749545,1774192233308,-347.43508066,9.964e-05,2]
[408749546,1774192233318,-321.55982235,9.964e-05,2]
[408749547,1774192233331,-434.96521531,9.964e-05,2]
[408749548,1774192233340,-1200.0,9.965e-05,2]
[408749549,1774192233349,-300.0,9.965e-05,2]
[408749550,1774192233359,-300.0,9.965e-05,2]
[408749551,1774192233368,-300.0,9.965e-05,2]
[408749552,1774192233377,-300.0,9.965e-05,2]
[408749553,1774192233387,-300.0,9.965e-05,2]
[408749554,1774192233396,-3688.1,9.966e-05,2]
[408749555,1774192233405,-4475.75772242,9.966e-05,2]
[408749556,1774192233414,-274.0,9.989e-05,2]
[408749557,1774192233423,-274.0,9.989e-05,2]
[408749558,1774192233432,-274.0,9.989e-05,2]
[408749559,1774192233441,-274.0,9.989e-05,2]
[408749560,1774192233450,-274.0,9.989e-05,2]
[408749561,1774192233459,-274.0,9.989e-05,2]
[408749562,1774192233468,-274.0,9.989e-05,2]
[408749563,1774192233477,-274.0,9.989e-05,2]
[408749564,1774192233486,-274.0,9.989e-05,2]
[408749565,1774192233495,-2522.87537004,0.0001,2]
[408749566,1774192233504,-515.0,0.00010059,2]
[408749567,1774192233513,-515.0,0.00010059,2]
[408749568,1774192233522,-515.0,0.00010059,2]
[408749569,1774192233532,-515.0,0.00010059,2]
[408749570,1774192233540,-515.0,0.00010059,2]
[408749571,1774192233549,-515.0,0.00010059,2]
[408749572,1774192233558,-309.37224627,0.00010059,2]
[408749573,1774192233593,-205.62775373,0.00010059,2]
[408749574,1774192233603,-515.0,0.00010059,2]
[408749575,1774192233612,-515.0,0.00010059,2]
[408749576,1774192233621,-515.0,0.00010059,2]
[408749577,1774192233630,-515.0,0.00010059,2]
[408749578,1774192233639,-515.0,0.00010059,2]
[408749579,1774192233649,-515.0,0.00010059,2]
[408749580,1774192233657,-515.0,0.00010059,2]
[408749581,1774192233666,-515.0,0.00010059,2]
[408749582,1774192233676,-515.0,0.00010059,2]
[408749583,1774192233685,-515.0,0.00010059,2]
[408749584,1774192233695,-1500.0,0.00010099,2]
[408749585,1774192233704,-395.64711056,0.00010149,2]
[408749586,1774192233714,-8392.62445395,0.0001015,2]
[408749587,1774192233723,-160.87254113,0.0001015,2]
[408749588,1774192233732,-773.59617072,0.0001015,2]
[408749589,1774192233741,-966.81684565,0.00010232,2]
[408749590,1774192233750,-966.81684565,0.00010232,2]
[408749591,1774192233759,-1000.0,0.0001024,2]
[408749592,1774192233768,-150.0,0.0001024,2]
[408749593,1774192233777,-500.0,0.00010241,2]
[408749594,1774192233787,-500.0,0.00010241,2]
[408749595,1774192233796,-500.0,0.00010241,2]
[408749596,1774192233806,-181.48883999,0.00010241,2]
[408749597,1774192233815,-395.70656752,0.00010241,2]
[408749598,1774192233824,-500.0,0.00010241,2]
[408749599,1774192233834,-500.0,0.00010241,2]
[408749600,1774192233843,-500.0,0.00010241,2]
[408749601,1774192233852,-500.0,0.00010241,2]
[408749602,1774192233861,-500.0,0.00010241,2]
[408749603,1774192233870,-614.57760746,0.00010241,2]
[408749604,1774192233879,-500.0,0.00010241,2]
[408749605,1774192233889,-500.0,0.00010241,2]
[408749606,1774192233898,-500.0,0.00010241,2]
[408749607,1774192233907,-500.0,0.00010241,2]
[408749608,1774192233916,-500.0,0.00010241,2]
[408749609,1774192233926,-500.0,0.00010241,2]
[408749610,1774192233935,-243.56326367,0.00010241,2]
[408749611,1774192233944,-500.0,0.00010241,2]
[408749612,1774192233955,-500.0,0.00010241,2]
[408749613,1774192233964,-500.0,0.00010241,2]
[408749614,1774192233973,-500.0,0.00010241,2]
[408749615,1774192233983,-500.0,0.00010241,2]
[408749616,1774192233992,-500.0,0.00010241,2]
[408749617,1774192234002,-170.88536018,0.00010241,2]